Workbook

Sheet Geometric Loci
A1: In order to draw the circles, you must seperate the real and imaginary parts of the vectors. | J1: 1.If more accuracy is required use 0.2 degree steps instead of 1 degreee
B2: s | C2: 100 | J2: 2. Try different corresponding crank rotations In some cases you will have some problems. Be sure to change the scale of your drawings (otherwise the circles will look like an ellips).
B3: f | C3: 160
C5: f
C6: =y*PI()/180 -> 2.792526803
B7: cos | C7: =+COS(C6) -> -0.9396926208 | D7: =+COS(C6/2) -> 0.1736481777 | F7: 0 | G7: 0
B8: sin | C8: =+SIN(C6) -> 0.3420201433 | D8: =+SIN(C6/2) -> 0.984807753 | F8: =4*COS(15*PI()/18) -> -3.464101615 | G8: =4*SIN(15*PI()/183) -> 1.018684481
B9: 1-cos | C9: =1-C7 -> 1.939692621
B10: 1+cos | C10: =1+C7 -> 0.06030737921
B11: t | C11: =+TAN(C6/2) -> 5.67128182
B12: In this sheet the loci for A0 and A are drawn for any given corresponding crank rotation f between dead centers. Stroke=1
B15: l | C15: Real | D15: Im | E15: Denom | F15: Zreal | G15: Zim | H15: Z2real | I15: Z2im
A16: -90 | B16: =+TAN(A16*PI()/180) -> -1.632455228e+16 | C16: =+B16*$C$9+$C$10 -> -3.166461359e+16 | D16: =+$C$8*(1-B16) -> 5583325709718649 | E16: =(C16^2+D16^2) -> 1.03382128e+33 | F16: =-C16/E16 -> 3.062871137e-17 | G16: =D16/E16 -> 5.400668199e-18 | H16: =+F16*(1+B16) -> -0.5 | I16: =+G16*(1+B16) -> -0.08816349035
A17: -89 | B17: =+TAN(A17*PI()/180) -> -57.28996163 | C17: =+B17*$C$9+$C$10 -> -111.0646084 | D17: =+$C$8*(1-B17) -> 19.93634103 | E17: =(C17^2+D17^2) -> 12732.80494 | F17: =-C17/E17 -> 0.008722713412 | G17: =D17/E17 -> 0.001565746206 | H17: =+F17*(1+B17) -> -0.4910012033 | I17: =+G17*(1+B17) -> -0.08813579387
A18: -88 | B18: -28.63625328 | C18: -55.4852218 | D18: 10.1361956 | E18: 3181.352299 | F18: 0.01744076625 | G18: 0.003186127986 | H18: -0.4819974334 | I18: -0.08805264002
A19: -87 | B19: -19.08113669 | C19: -36.95123265 | D19: 6.868153248 | E19: 1412.565123 | F19: 0.02615895865 | G19: 0.004862185208 | H19: -0.4729837069 | I19: -0.08791383534
A20: -86 | B20: -14.30066626 | C20: -27.67858943 | D20: 5.233136066 | E20: 793.490026 | F20: 0.03488208865 | G20: 0.006595087392 | H20: -0.4639550195 | I20: -0.08771905634
A21: -85 | B21: -11.4300523 | C21: -22.11048073 | D21: 4.25132827 | E21: 506.9471501 | F21: 0.04361496208 | G21: 0.008386137035 | H21: -0.4549063357 | I21: -0.0874678479
A22: -84 | B22: -9.514364454 | C22: -18.39463514 | D22: 3.596124438 | E22: 351.2947131 | F22: 0.05236240245 | G22: 0.01023677358 | H22: -0.4458325782 | I22: -0.0871596211
A23: -83 | B23: -8.144346428 | C23: -15.73722129 | D23: 3.127550676 | E23: 257.4417071 | F23: 0.06112926093 | G23: 0.01214857806 | H23: -0.436728617 | I23: -0.0867936503
A24: -82 | B24: -7.115369722 | C24: -13.74132277 | D24: 2.775619916 | E24: 196.5280173 | F24: 0.0699204264 | G24: 0.01412327847 | H24: -0.4275892586 | I24: -0.08636906956
A25: -81 | B25: -6.313751515 | C25: -12.18642984 | D25: 2.501450341 | E25: 154.7663261 | F25: 0.0787408356 | G25: 0.01616275584 | H25: -0.4184092345 | I25: -0.08588486832
A26: -80 | B26: -5.67128182 | C26: -10.94023612 | D26: 2.281712764 | E26: 124.8949794 | F26: 0.08759548356 | G26: 0.01826905112 | H26: -0.4091831898 | I26: -0.08533988637
A27: -79 | B27: -5.144554016 | C27: -9.918546083 | D27: 2.101561245 | E27: 102.7941161 | F27: 0.09648943405 | G27: 0.02044437294 | H27: -0.3999056714 | I27: -0.08473280799
A28: -78 | B28: -4.704630109 | C28: -9.065228928 | D28: 1.951098408 | E28: 85.98516051 | F28: 0.1054278305 | G28: 0.02269110619 | H28: -0.3905711153 | I28: -0.0840621552
A29: -77 | B29: -4.331475874 | C29: -8.341424411 | D29: 1.823472143 | E29: 72.90441186 | F29: 0.114415907 | G29: 0.02501182159 | H29: -0.381173834 | I29: -0.0833262802
A30: -76 | B30: -4.010780934 | C30: -7.719374801 | D30: 1.713788013 | E30: 62.52581667 | F30: 0.123459 | G30: 0.02740928634 | H30: -0.3717080033 | I30: -0.08252335672
A31: -75 | B31: -3.732050808 | C31: -7.178724033 | D31: 1.618456695 | E31: 54.15348081 | F31: 0.1325625597 | G31: 0.02988647583 | H31: -0.3621676483 | I31: -0.08165137043
A32: -74 | B32: -3.487414444 | C32: -6.704204683 | D32: 1.534786131 | E32: 47.3019289 | F32: 0.1417321627 | G32: 0.03244658657 | H32: -0.3525466287 | I32: -0.0807081081
A33: -73 | B33: -3.270852618 | C33: -6.284141309 | D33: 1.460717625 | E33: 41.62412796 | F33: 0.1509735246 | G33: 0.0350930505 | H33: -0.3428386237 | I33: -0.07969114562
A34: -72 | B34: -3.077683537 | C34: -5.909452667 | D34: 1.394649908 | E34: 36.86667919 | F34: 0.1602925134 | G34: 0.03782955065 | H34: -0.3330371162 | I34: -0.07859783461
A35: -71 | B35: -2.904210878 | C35: -5.572969029 | D35: 1.335318764 | E35: 32.84106 | F35: 0.169695163 | G35: 0.04066003849 | H35: -0.3231353752 | I35: -0.07742528759
A36: -70 | B36: -2.747477419 | C36: -5.268954297 | D36: 1.281712764 | E36: 29.40466699 | F36: 0.1791876881 | G36: 0.04358875291 | H36: -0.3131264387 | I36: -0.07617036146
A37: -69 | B37: -2.605089065 | C37: -4.992764656 | D37: 1.233013079 | E37: 26.44802016 | F37: 0.1887764992 | G37: 0.04662024118 | H37: -0.3030030945 | I37: -0.0748296393
A38: -68 | B38: -2.475086853 | C38: -4.740600326 | D38: 1.188549704 | E38: 23.88594185 | F38: 0.1984682185 | G38: 0.04975938195 | H38: -0.2927578599 | I38: -0.07339941014
A39: -67 | B39: -2.355852366 | C39: -4.50932207 | D39: 1.147769107 | E39: 21.65135946 | F39: 0.2082696968 | G39: 0.05301141064 | H39: -0.2823829612 | I39: -0.07187564653
A40: -66 | B40: -2.246036774 | C40: -4.296313577 | D40: 1.110209963 | E40: 19.69087651 | F40: 0.2181880311 | G40: 0.05638194734 | H40: -0.2718703104 | I40: -0.07025397977
A41: -65 | B41: -2.144506921 | C41: -4.09937687 | D41: 1.075484708 | E41: 17.96155808 | F41: 0.2282305829 | G41: 0.05987702754 | H41: -0.2612114816 | I41: -0.0685296724
A42: -64 | B42: -2.050303842 | C42: -3.916651853 | D42: 1.043265357 | E42: 16.42856434 | F42: 0.2384049982 | G42: 0.06350313609 | H42: -0.2503976855 | I42: -0.06669758779
A43: -63 | B43: -1.962610506 | C43: -3.746553736 | D43: 1.01327247 | E43: 15.06338599 | F43: 0.248719228 | G43: 0.06726724457 | H43: -0.2394197418 | I43: -0.0647521563
A44: -62 | B44: -1.880726465 | C44: -3.587723867 | D44: 0.9852664786 | E44: 13.84251258 | F44: 0.25918155 | G44: 0.07117685266 | H44: -0.2282680504 | I44: -0.06268733786
A45: -61 | B45: -1.804047755 | C45: -3.438990739 | D45: 0.9590408151 | E45: 12.74641659 | F45: 0.2698005918 | G45: 0.07524003381 | H45: -0.2169325602 | I45: -0.06049658029
A46: -60 | B46: -1.732050808 | C46: -3.299338791 | D46: 0.9344164088 | E46: 11.75877048 | F46: 0.2805853551 | G46: 0.07946548579 | H46: -0.2054027358 | I46: -0.05817277305
A47: -59 | B47: -1.664279482 | C47: -3.167883252 | D47: 0.9112372504 | E47: 10.86583762 | F47: 0.2915452413 | G47: 0.08386258677 | H47: -0.193667522 | I47: -0.05570819573
A48: -58 | B48: -1.600334529 | C48: -3.043849698 | D48: 0.8893667883 | E48: 10.05599427 | F48: 0.3026900789 | G48: 0.08844145739 | H48: -0.181715306 | I48: -0.05309446067
A49: -57 | B49: -1.539864964 | C49: -2.926557328 | D49: 0.868684979 | E49: 9.319351387 | F49: 0.3140301515 | G49: 0.09321302984 | H49: -0.1695338764 | I49: -0.05032244898
A50: -56 | B50: -1.482560969 | C50: -2.815405191 | D50: 0.8490858583 | E50: 8.647453186 | F50: 0.3255762281 | G50: 0.09818912459 | H50: -0.15711038 | I50: -0.04738223906
A51: -55 | B51: -1.428148007 | C51: -2.709860771 | D51: 0.8304755293 | E51: 8.033035002 | F51: 0.3373395946 | G51: 0.1033825359 | H51: -0.144431275 | I51: -0.04426302667
A52: -54 | B52: -1.37638192 | C52: -2.609450475 | D52: 0.812770485 | E52: 7.469827644 | F52: 0.3493320863 | G52: 0.108807127 | H52: -0.1314822815 | I52: -0.04095303541
A53: -53 | B53: -1.327044822 | C53: -2.513751669 | D53: 0.7958962034 | E53: 6.952398219 | F53: 0.3615661229 | G53: 0.1144779367 | H53: -0.1182483282 | I53: -0.0374394164
A54: -52 | B54: -1.279941632 | C54: -2.42238596 | D54: 0.7797859638 | E54: 6.476019888 | F54: 0.3740547438 | G54: 0.1204112985 | H54: -0.1047134955 | I54: -0.03370813544
A55: -51 | B55: -1.234897157 | C55: -2.335013523 | D55: 0.7643798458 | E55: 6.0365647 | F55: 0.3868116452 | G55: 0.1266249736 | H55: -0.09086095556 | I55: -0.02974384625
A56: -50 | B56: -1.191753593 | C56: -2.25132827 | D56: 0.7496238779 | E56: 5.630414938 | F56: 0.3998512179 | G56: 0.1331383008 | H56: -0.07667290753 | I56: -0.0255297475
A57: -49 | B57: -1.150368407 | C57: -2.171053731 | D57: 0.7354693108 | E57: 5.254389412 | F57: 0.413188586 | G57: 0.1399723647 | H57: -0.06213050956 | I57: -0.02104742153
A58: -48 | B58: -1.110612515 | C58: -2.09393952 | D58: 0.7218719948 | E58: 4.905681892 | F58: 0.4268396456 | G58: 0.1471501844 | H58: -0.04721380663 | I58: -0.01627665195
A59: -47 | B59: -1.07236871 | C59: -2.019758294 | D59: 0.7087918432 | E59: 4.581809445 | F59: 0.4408211033 | G59: 0.1546969274 | H59: -0.03190165459 | I59: -0.01119521708
A60: -46 | B60: -1.035530314 | C60: -1.948303129 | D60: 0.6961923697 | E60: 4.280568898 | F60: 0.4551505128 | G60: 0.1626401505 | H60: -0.01617164054 | I60: -0.005778655581
A61: -45 | B61: -1 | C61: -1.879385242 | D61: 0.6840402867 | E61: 4 | F61: 0.4698463104 | G61: 0.1710100717 | H61: 5.216341918e-17 | I61: 1.89859319e-17
A62: -44 | B62: -0.9656887748 | C62: -1.812832011 | D62: 0.6723051565 | E62: 3.738354124 | F62: 0.4849278455 | G62: 0.1798398798 | H62: 0.01663846851 | I62: 0.006170526615
A63: -43 | B63: -0.9325150861 | C63: -1.748485252 | D63: 0.6609590867 | E63: 3.494067591 | F63: 0.500415406 | G63: 0.1891660849 | H63: 0.03377049057 | I63: 0.01276585695
A64: -42 | B64: -0.9004040443 | C64: -1.686199701 | D64: 0.6499764636 | E64: 3.265738836 | F64: 0.5163302352 | G64: 0.199028917 | H64: 0.05142440324 | I64: 0.0198224752
A65: -41 | B65: -0.8692867378 | C65: -1.625841691 | D65: 0.639333718 | E65: 3.052108809 | F65: 0.5326945379 | G65: 0.2094727803 | H65: 0.0696302408 | I65: 0.02738087045
A66: -40 | B66: -0.8390996312 | C66: -1.567287983 | D66: 0.6290091194 | E66: 2.852044096 | F66: 0.5495314697 | G66: 0.2205467722 | H66: 0.08841981616 | I66: 0.03548605699
A67: -39 | B67: -0.8097840332 | C67: -1.510424734 | D67: 0.6189825944 | E67: 2.66452233 | F67: 0.5668651064 | G67: 0.2323052756 | H67: 0.1078267943 | I67: 0.0441881726
A68: -38 | B68: -0.7812856265 | C68: -1.455146585 | D68: 0.6092355653 | E68: 2.488619559 | F68: 0.5847203845 | G68: 0.2448086383 | H68: 0.1278867526 | I68: 0.05354316794
A69: -37 | B69: -0.7535540501 | C69: -1.401355851 | D69: 0.5997508075 | E69: 2.323499253 | F69: 0.6031230049 | G69: 0.2581239511 | H69: 0.1486372218 | I69: 0.06361360233
A70: -36 | B70: -0.726542528 | C70: -1.348961801 | D70: 0.5905123229 | E70: 2.168402744 | F70: 0.622099287 | G70: 0.2723259434 | H70: 0.1701176983 | I70: 0.07446956403
A71: -35 | B71: -0.7002075382 | C71: -1.297880016 | D71: 0.5815052259 | E71: 2.022640863 | F71: 0.6416759591 | G71: 0.2874980114 | H71: 0.1923696155 | I71: 0.08618973661
A72: -34 | B72: -0.6745085168 | C72: -1.248031814 | D72: 0.5727156429 | E72: 1.885586615 | F72: 0.6618798646 | G72: 0.3037334049 | H72: 0.2154362588 | I72: 0.09886263645
A73: -33 | B73: -0.6494075932 | C73: -1.199343737 | D73: 0.5641306214 | E73: 1.756668758 | F73: 0.6827375575 | G73: 0.3211365938 | H73: 0.2393626035 | I73: 0.1125880513
A74: -32 | B74: -0.6248693519 | C74: -1.151747092 | D74: 0.5557380486 | E74: 1.635366142 | F74: 0.7042747567 | G74: 0.3398248468 | H74: 0.2641950459 | I74: 0.127478715
A75: -31 | B75: -0.600860619 | C75: -1.10517753 | D75: 0.5475265784 | E75: 1.521202726 | F75: 0.7265156121 | G75: 0.3599300534 | H75: 0.2899809917 | I75: 0.1436622587
A76: -30 | B76: -0.5773502692 | C76: -1.059574678 | D76: 0.5394855651 | E76: 1.413743172 | F76: 0.7494817293 | G76: 0.381600828 | H76: 0.3167682511 | I76: 0.1612834872
A77: -29 | B77: -0.5543090515 | C77: -1.014881798 | D77: 0.5316050046 | E77: 1.312588944 | F77: 0.7731908777 | G77: 0.4050049386 | H77: 0.3446041757 | I77: 0.1805070352
A78: -28 | B78: -0.5317094317 | C78: -0.9710454818 | D78: 0.5238754794 | E78: 1.217374846 | F78: 0.797655287 | G78: 0.4303321046 | H78: 0.3735344477 | I78: 0.2015204658
A79: -27 | B79: -0.5095254495 | C79: -0.9280153753 | D79: 0.5162881106 | E79: 1.12776595 | F79: 0.8228794063 | G79: 0.4577972146 | H79: 0.4036014069 | I79: 0.2245378831
A80: -26 | B80: -0.4877325886 | C80: -0.8857439237 | D80: 0.5088345132 | E80: 1.04345486 | F80: 0.848856963 | G80: 0.4876440108 | H80: 0.4348417591 | I80: 0.2498041351
A81: -25 | B81: =+TAN(A81*PI()/180) -> -0.4663076582 | C81: =+B81*$C$9+$C$10 -> -0.8441861443 | D81: =+$C$8*(1-B81) -> 0.5015067554 | E81: =(C81^2+D81^2) -> 0.964159272 | F81: =-C81/E81 -> 0.8755671069 | G81: =D81/E81 -> 0.5201492844 | H81: =+F81*(1+B81) -> 0.4672834597 | I81: =+G81*(1+B81) -> 0.2775996897
A82: -24 | B82: -0.4452286853 | C82: -0.8032994162 | D82: 0.4942973221 | E82: 0.8896197948 | F82: 0.9029693595 | G82: 0.5556276119 | H82: 0.5009414987 | I82: 0.3082462608
A83: -23 | B83: -0.4244748162 | C83: -0.7630432895 | D83: 0.4871990808 | E83: 0.819598006 | F83: 0.9309970058 | G83: 0.5944366351 | H83: 0.5358122228 | I83: 0.3421132537
A84: -22 | B84: -0.4040262258 | C84: -0.7233793096 | D84: 0.480205251 | E84: 0.7538747087 | F84: 0.9595484519 | G84: 0.6369828374 | H84: 0.5718657124 | I84: 0.3796250657
A85: -21 | B85: -0.383864035 | C85: -0.6842708569 | D85: 0.4733093756 | E85: 0.6922483707 | F85: 0.9884759371 | G85: 0.6837276845 | H85: 0.6090355754 | I85: 0.4212692167
A86: -20 | B86: -0.3639702343 | C86: -0.6456829984 | D86: 0.466505295 | E86: 0.6345337247 | F86: 1.017570813 | G86: 0.7351938548 | H86: 0.6472053261 | I86: 0.4676051752
A87: -19 | B87: -0.3443276133 | C87: -0.6075823514 | D87: 0.459787123 | E87: 0.5805605122 | F87: 1.046544397 | G87: 0.7919710578 | H87: 0.6861902629 | I87: 0.5192735537
A88: -18 | B88: -0.3249196962 | C88: -0.5699369579 | D88: 0.4531492244 | E88: 0.5301723556 | F88: 1.075003161 | G88: 0.8547205822 | H88: 0.7257134602 | I88: 0.5770050302
A89: -17 | B89: -0.3057306815 | C89: -0.5327161676 | D89: 0.4465861948 | E89: 0.4832257446 | F89: 1.102416776 | G89: 0.924177157 | H89: 0.765374144 | I89: 0.641627845
A90: -16 | B90: -0.2867453858 | C90: -0.4958905296 | D90: 0.4400928413 | E90: 0.4395891263 | F90: 1.128077334 | G90: 1.001145877 | H90: 0.8046063637 | I90: 0.7140719162
A91: -15 | B91: -0.2679491924 | C91: -0.4594316921 | D91: 0.4336641645 | E91: 0.3991420873 | F91: 1.151047977 | G91: 1.086490697 | H91: 0.8426256011 | I91: 0.795366392
A92: -14 | B92: -0.2493280028 | C92: -0.4233123081 | D92: 0.4272953426 | E92: 0.36177462 | F92: 1.170099517 | G92: 1.181109229 | H92: 0.8783609413 | I92: 0.8866256241
A93: -13 | B93: -0.2308681911 | C93: -0.3875059475 | D93: 0.4209817151 | E93: 0.3273864638 | F93: 1.183634604 | G93: 1.285886137 | H93: 0.9103710241 | I93: 0.9890159303
A94: -12 | B94: -0.2125565617 | C94: -0.351987015 | D94: 0.414718769 | E94: 0.2958865161 | F94: 1.189601404 | G94: 1.40161429 | H94: 0.9367438198 | I94: 1.103691975
A95: -11 | B95: -0.1943803091 | C95: -0.316730672 | D95: 0.4085021245 | E95: 0.2671923043 | F95: 1.185403423 | G95: 1.528869349 | H95: 0.9549843388 | I95: 1.231687253
A96: -10 | B96: -0.1763269807 | C96: -0.2817127641 | D96: 0.4023275225 | E96: 0.2412295169 | F96: 1.167820455 | G96: 1.667820455 | H96: 0.9619022001 | I96: 1.37373871
A97: -9 | B97: -0.1583844403 | C97: -0.2469097509 | D97: 0.3961908123 | E97: 0.2179315849 | F97: 1.132969097 | G97: 1.817959579 | H97: 0.9535244208 | I97: 1.530023069
A98: -8 | B98: -0.1405408347 | C98: -0.2122986408 | D98: 0.3900879398 | E98: 0.1972393136 | F98: 1.076350535 | G98: 1.977739288 | H98: 0.9250793326 | I98: 1.699786158
A99: -7 | B99: -0.1227845609 | C99: -0.1778569275 | D99: 0.3840149364 | E99: 0.1791005581 | F99: 0.9930562441 | G99: 2.144130317 | H99: 0.8711242692 | I99: 1.880864218
A100: -6 | B100: -0.1051042353 | C100: -0.1435625303 | D100: 0.3779679089 | E100: 0.1634699403 | F100: 0.8782197515 | G100: 2.312155423 | H100: 0.7859151361 | I100: 2.069138095
A101: -5 | B101: -0.08748866353 | C101: -0.1093937358 | D101: 0.3719430286 | E101: 0.1503086059 | F101: 0.7277942281 | G101: 2.474529161 | H101: 0.6641204837 | I101: 2.258035912
A102: -4 | B102: -0.06992681194 | C102: -0.07532914191 | D102: 0.3659365216 | E102: 0.1395840174 | F102: 0.5396688195 | G102: 2.621621933 | H102: 0.5019314994 | I102: 2.438300269
A103: -3 | B103: -0.05240777928 | C103: -0.04134760353 | D103: 0.3599446595 | E103: 0.1312697822 | F103: 0.3149818856 | G103: 2.742022219 | H103: 0.2984743845 | I103: 2.598318923
A104: -2 | B104: -0.03492076949 | C104: -0.007428179681 | D104: 0.3539637499 | E104: 0.1253455141 | F104: 0.05926163161 | G104: 2.823904409 | H104: 0.05719216984 | I104: 2.725291494
A105: -1 | B105: -0.01745506493 | C105: 0.02644991858 | D105: 0.3479901271 | E105: 0.1217967268 | F105: -0.217164445 | G105: 2.857138581 | H105: -0.2133738255 | I105: 2.807267042
A106: 0 | B106: 0 | C106: 0.06030737921 | D106: 0.3420201433 | E106: 0.1206147584 | F106: -0.5 | G106: 2.83564091 | H106: -0.5 | I106: 2.83564091
A107: 1 | B107: 0.01745506493 | C107: 0.09416483985 | D107: 0.3360501595 | E107: 0.1217967268 | F107: -0.7731311205 | G107: 2.759106656 | H107: -0.7866261745 | I107: 2.807267042
A108: 2 | B108: 0.03492076949 | C108: 0.1280429381 | D108: 0.3300765367 | E108: 0.1253455141 | F108: -1.021519909 | G108: 2.633333463 | H108: -1.05719217 | I108: 2.725291494
A109: 3 | B109: 0.05240777928 | C109: 0.161962362 | D109: 0.3240956271 | E109: 0.1312697822 | F109: -1.233812986 | G109: 2.468927895 | H109: -1.298474384 | I109: 2.598318923
A110: 4 | B110: 0.06992681194 | C110: 0.1959439003 | D110: 0.3181037651 | E110: 0.1395840174 | F110: -1.403770316 | G110: 2.278941178 | H110: -1.501931499 | I110: 2.438300269
A111: 5 | B111: 0.08748866353 | C111: 0.2300084943 | D111: 0.3120972581 | E111: 0.1503086059 | F111: -1.530241684 | G111: 2.076376506 | H111: -1.664120484 | I111: 2.258035912
A112: 6 | B112: 0.1051042353 | C112: 0.2641772888 | D112: 0.3060723777 | E112: 0.1634699403 | F112: -1.616060349 | G112: 1.872346544 | H112: -1.785915136 | I112: 2.069138095
A113: 7 | B113: 0.1227845609 | C113: 0.2984716859 | D113: 0.3000253502 | E113: 0.1791005581 | F113: -1.666503383 | G113: 1.675178198 | H113: -1.871124269 | I113: 1.880864218
A114: 8 | B114: 0.1405408347 | C114: 0.3329133992 | D114: 0.2939523469 | E114: 0.1972393136 | F114: -1.68786533 | G114: 1.490333451 | H114: -1.925079333 | I114: 1.699786158
A115: 9 | B115: 0.1583844403 | C115: 0.3675245094 | D115: 0.2878494743 | E115: 0.2179315849 | F115: -1.686421496 | G115: 1.320824948 | H115: -1.953524421 | I115: 1.530023069
A116: 10 | B116: 0.1763269807 | C116: 0.4023275225 | D116: 0.2817127641 | E116: 0.2412295169 | F116: -1.667820455 | G116: 1.167820455 | H116: -1.9619022 | I116: 1.37373871
A117: 11 | B117: 0.1943803091 | C117: 0.4373454305 | D117: 0.2755381621 | E117: 0.2671923043 | F117: -1.636818963 | G117: 1.031235397 | H117: -1.954984339 | I117: 1.231687253
A118: 12 | B118: 0.2125565617 | C118: 0.4726017734 | D118: 0.2693215176 | E118: 0.2958865161 | F118: -1.597239981 | G118: 0.9102189624 | H118: -1.93674382 | I118: 1.103691975
A119: 13 | B119: 0.2308681911 | C119: 0.5081207059 | D119: 0.2630585715 | E119: 0.3273864638 | F119: -1.552051664 | G119: 0.8035108368 | H119: -1.910371024 | I119: 0.9890159303
A120: 14 | B120: 0.2493280028 | C120: 0.5439270665 | D120: 0.2567449441 | E120: 0.36177462 | F120: -1.50349703 | G120: 0.7096820227 | H120: -1.878360941 | I120: 0.8866256241
A121: 15 | B121: 0.2679491924 | C121: 0.5800464505 | D121: 0.2503761221 | E121: 0.3991420873 | F121: -1.453232994 | G121: 0.6272856962 | H121: -1.842625601 | I121: 0.795366392
A122: 16 | B122: 0.2867453858 | C122: 0.616505288 | D122: 0.2439474454 | E122: 0.4395891263 | F122: -1.402458003 | G122: 0.5549442214 | H122: -1.804606364 | I122: 0.7140719162
A123: 17 | B123: 0.3057306815 | C123: 0.653330926 | D123: 0.2374540918 | E123: 0.4832257446 | F123: -1.352020113 | G123: 0.4913937109 | H123: -1.765374144 | I123: 0.641627845
A124: 18 | B124: 0.3249196962 | C124: 0.6905517163 | D124: 0.2308910623 | E124: 0.5301723556 | F124: -1.302504193 | G124: 0.4355018888 | H124: -1.72571346 | I124: 0.5770050302
A125: 19 | B125: 0.3443276133 | C125: 0.7281971098 | D125: 0.2242531637 | E125: 0.5805605122 | F125: -1.254300102 | G125: 0.3862700941 | H125: -1.686190263 | I125: 0.5192735537
A126: 20 | B126: 0.3639702343 | C126: 0.7662977568 | D126: 0.2175349916 | E126: 0.6345337247 | F126: -1.207654892 | G126: 0.3428265247 | H126: -1.647205326 | I126: 0.4676051752
A127: 21 | B127: 0.383864035 | C127: 0.8048856154 | D127: 0.210730911 | E127: 0.6922483707 | F127: -1.162712185 | G127: 0.3044151781 | H127: -1.609035575 | I127: 0.4212692167
A128: 22 | B128: 0.4040262258 | C128: 0.8439940681 | D128: 0.2038350357 | E128: 0.7538747087 | F128: -1.119541561 | G128: 0.2703831728 | H128: -1.571865712 | I128: 0.3796250657
A129: 23 | B129: 0.4244748162 | C129: 0.8836580479 | D129: 0.1968412058 | E129: 0.819598006 | F129: -1.078160319 | G129: 0.2401679902 | H129: -1.535812223 | I129: 0.3421132537
A130: 24 | B130: 0.4452286853 | C130: 0.9239141747 | D130: 0.1897429646 | E130: 0.8896197948 | F130: -1.038549479 | G130: 0.2132854571 | H130: -1.500941499 | I130: 0.3082462608
A131: 25 | B131: 0.4663076582 | C131: 0.9648009028 | D131: 0.1825335312 | E131: 0.964159272 | F131: -1.000665482 | G131: 0.1893188569 | H131: -1.46728346 | I131: 0.2775996897
A132: 26 | B132: 0.4877325886 | C132: 1.006358682 | D132: 0.1752057735 | E132: 1.04345486 | F132: -0.9644486988 | G132: 0.1679092984 | H132: -1.434841759 | I132: 0.2498041351
A133: 27 | B133: 0.5095254495 | C133: 1.048630134 | D133: 0.1677521761 | E133: 1.12776595 | F133: -0.9298295748 | G133: 0.1487473319 | H133: -1.403601407 | I133: 0.2245378831
A134: 28 | B134: 0.5317094317 | C134: 1.09166024 | D134: 0.1601648073 | E134: 1.217374846 | F134: -0.8967330352 | G134: 0.1315657276 | H134: -1.373534448 | I134: 0.2015204658
A135: 29 | B135: 0.5543090515 | C135: 1.135496556 | D135: 0.1524352821 | E135: 1.312588944 | F135: -0.8650816094 | G135: 0.1161332973 | H135: -1.344604176 | I135: 0.1805070352
A136: 30 | B136: 0.5773502692 | C136: 1.180189436 | D136: 0.1445547215 | E136: 1.413743172 | F136: -0.8347976203 | G136: 0.1022496337 | H136: -1.316768251 | I136: 0.1612834872
A137: 31 | B137: 0.600860619 | C137: 1.225792288 | D137: 0.1365137083 | E137: 1.521202726 | F137: -0.805804688 | G137: 0.08974064137 | H137: -1.289980992 | I137: 0.1436622587
A138: 32 | B138: 0.6248693519 | C138: 1.27236185 | D138: 0.128302238 | E138: 1.635366142 | F138: -0.7780287347 | G138: 0.07845474768 | H138: -1.264195046 | I138: 0.127478715
A139: 33 | B139: 0.6494075932 | C139: 1.319958496 | D139: 0.1199096652 | E139: 1.756668758 | F139: -0.7513986286 | G139: 0.06825969021 | H139: -1.239362604 | I139: 0.1125880513
A140: 34 | B140: 0.6745085168 | C140: 1.368646572 | D140: 0.1113246437 | E140: 1.885586615 | F140: -0.7258465673 | G140: 0.05903979314 | H140: -1.215436259 | I140: 0.09886263645
A141: 35 | B141: 0.7002075382 | C141: 1.418494774 | D141: 0.1025350607 | E141: 2.022640863 | F141: -0.7013082748 | G141: 0.05069365632 | H141: -1.192369615 | I141: 0.08618973661
A142: 36 | B142: 0.726542528 | C142: 1.469576559 | D142: 0.09352796377 | E142: 2.168402744 | F142: -0.6777230676 | G142: 0.04313219212 | H142: -1.170117698 | I142: 0.07446956403
A143: 37 | B143: 0.7535540501 | C143: 1.52197061 | D143: 0.08428947911 | E143: 2.323499253 | F143: -0.6550338279 | G143: 0.03627695555 | H143: -1.148637222 | I143: 0.06361360233
A144: 38 | B144: 0.7812856265 | C144: 1.575761344 | D144: 0.07480472137 | E144: 2.488619559 | F144: -0.6331869161 | G144: 0.03005872115 | H144: -1.127886753 | I144: 0.05354316794
A145: 39 | B145: =+TAN(A145*PI()/180) -> 0.8097840332 | C145: =+B145*$C$9+$C$10 -> 1.631039493 | D145: =+$C$8*(1-B145) -> 0.06505769223 | E145: =(C145^2+D145^2) -> 2.66452233 | F145: =-C145/E145 -> -0.6121320411 | G145: =D145/E145 -> 0.02441626834 | H145: =+F145*(1+B145) -> -1.107826794 | I145: =+G145*(1+B145) -> 0.0441881726
A146: 40 | B146: 0.8390996312 | C146: 1.687902742 | D146: 0.05503116721 | E146: 2.852044096 | F146: -0.5918221056 | G146: 0.01929534234 | H146: -1.088419816 | I146: 0.03548605699
A147: 41 | B147: 0.8692867378 | C147: 1.74645645 | D147: 0.04470656867 | E147: 3.052108809 | F147: -0.5722130367 | G147: 0.01464776372 | H147: -1.069630241 | I147: 0.02738087045
A148: 42 | B148: 0.9004040443 | C148: 1.80681446 | D148: 0.03406382304 | E148: 3.265738836 | F148: -0.5532636106 | G148: 0.01043066355 | H148: -1.051424403 | I148: 0.0198224752
A149: 43 | B149: 0.9325150861 | C149: 1.869100011 | D149: 0.02308119991 | E149: 3.494067591 | F149: -0.5349352758 | G149: 0.006605825248 | H149: -1.033770491 | I149: 0.01276585695
A150: 44 | B150: 0.9656887748 | C150: 1.93344677 | D150: 0.01173513016 | E150: 3.738354124 | F150: -0.5171919795 | G150: 0.003139116779 | H150: -1.016638469 | I150: 0.006170526615
A151: 45 | B151: 1 | C151: 2 | D151: 3.79718638e-17 | E151: 4 | F151: -0.5 | G151: 9.49296595e-18 | H151: -1 | I151: 1.89859319e-17
A152: 46 | B152: 1.035530314 | C152: 2.068917887 | D152: -0.01215208302 | E152: 4.280568898 | F152: -0.4833277858 | G152: -0.002838894386 | H152: -0.9838283595 | I152: -0.005778655581
A153: 47 | B153: 1.07236871 | C153: 2.140373053 | D153: -0.02475155657 | E153: 4.581809445 | F153: -0.4671458031 | G153: -0.005402135744 | H153: -0.9680983454 | I153: -0.01119521708
A154: 48 | B154: 1.110612515 | C154: 2.214554279 | D154: -0.03783170818 | E154: 4.905681892 | F154: -0.4514263924 | G154: -0.007711814384 | H154: -0.9527861934 | I154: -0.01627665195
A155: 49 | B155: 1.150368407 | C155: 2.29166849 | D155: -0.05142902419 | E155: 5.254389412 | F155: -0.4361436335 | G155: -0.009787821221 | H155: -0.9378694904 | I155: -0.02104742153
A156: 50 | B156: 1.191753593 | C156: 2.371943029 | D156: -0.06558359122 | E156: 5.630414938 | F156: -0.4212732196 | G156: -0.011648092 | H156: -0.9233270925 | I156: -0.0255297475
A157: 51 | B157: 1.234897157 | C157: 2.455628281 | D157: -0.08033955914 | E157: 6.0365647 | F157: -0.4067923402 | G157: -0.01330882102 | H157: -0.9091390444 | I157: -0.02974384625
A158: 52 | B158: 1.279941632 | C158: 2.543000718 | D158: -0.09574567717 | E158: 6.476019888 | F158: -0.3926795721 | G158: -0.01478464841 | H158: -0.8952865045 | I158: -0.03370813544
A159: 53 | B159: 1.327044822 | C159: 2.634366427 | D159: -0.1118559168 | E159: 6.952398219 | F159: -0.3789147779 | G159: -0.01608882478 | H159: -0.8817516718 | I159: -0.0374394164
A160: 54 | B160: 1.37638192 | C160: 2.730065234 | D160: -0.1287301984 | E160: 7.469827644 | F160: -0.3654790129 | G160: -0.01723335591 | H160: -0.8685177185 | I160: -0.04095303541
A161: 55 | B161: 1.428148007 | C161: 2.830475529 | D161: -0.1464352426 | E161: 8.033035002 | F161: -0.3523544375 | G161: -0.01822913041 | H161: -0.855568725 | I161: -0.04426302667
A162: 56 | B162: 1.482560969 | C162: 2.93601995 | D162: -0.1650455716 | E162: 8.647453186 | F162: -0.3395242376 | G162: -0.01908603239 | H162: -0.84288962 | I162: -0.04738223906
A163: 57 | B163: 1.539864964 | C163: 3.047172087 | D163: -0.1846446923 | E163: 9.319351387 | F163: -0.3269725499 | G163: -0.01981304113 | H163: -0.8304661236 | I163: -0.05032244898
A164: 58 | B164: 1.600334529 | C164: 3.164464456 | D164: -0.2053265017 | E164: 10.05599427 | F164: -0.3146843935 | G164: -0.02041831929 | H164: -0.818284694 | I164: -0.05309446067
A165: 59 | B165: 1.664279482 | C165: 3.28849801 | D165: -0.2271969638 | E165: 10.86583762 | F165: -0.3026456058 | G165: -0.02090929127 | H165: -0.806332478 | I165: -0.05570819573
A166: 60 | B166: 1.732050808 | C166: 3.419953549 | D166: -0.2503761221 | E166: 11.75877048 | F166: -0.2908427845 | G166: -0.02129271274 | H166: -0.7945972642 | I166: -0.05817277305
A167: 61 | B167: 1.804047755 | C167: 3.559605498 | D167: -0.2750005285 | E167: 12.74641659 | F167: -0.2792632323 | G167: -0.02157473252 | H167: -0.7830674398 | I167: -0.06049658029
A168: 62 | B168: 1.880726465 | C168: 3.708338626 | D168: -0.3012261919 | E168: 13.84251258 | F168: -0.2678949074 | G168: -0.02176094767 | H168: -0.7717319496 | I168: -0.06268733786
A169: 63 | B169: 1.962610506 | C169: 3.867168494 | D169: -0.3292321831 | E169: 15.06338599 | F169: -0.2567263759 | G169: -0.02185645267 | H169: -0.7605802582 | I169: -0.0647521563
A170: 64 | B170: 2.050303842 | C170: 4.037266611 | D170: -0.3592250704 | E170: 16.42856434 | F170: -0.2457467693 | G170: -0.02186588329 | H170: -0.7496023145 | I170: -0.06669758779
A171: 65 | B171: 2.144506921 | C171: 4.219991628 | D171: -0.391444421 | E171: 17.96155808 | F171: -0.2349457441 | G171: -0.02179345574 | H171: -0.7387885184 | I171: -0.0685296724
A172: 66 | B172: 2.246036774 | C172: 4.416928336 | D172: -0.426169676 | E172: 19.69087651 | F172: -0.2243134445 | G172: -0.02164300181 | H172: -0.7281296896 | I172: -0.07025397977
A173: 67 | B173: 2.355852366 | C173: 4.629936829 | D173: -0.4637288205 | E173: 21.65135946 | F173: -0.2138404675 | G173: -0.02141800017 | H173: -0.7176170388 | I173: -0.07187564653
A174: 68 | B174: 2.475086853 | C174: 4.861215085 | D174: -0.504509417 | E174: 23.88594185 | F174: -0.2035178313 | G174: -0.02112160451 | H174: -0.7072421401 | I174: -0.07339941014
A175: 69 | B175: 2.605089065 | C175: 5.113379414 | D175: -0.548972792 | E175: 26.44802016 | F175: -0.1933369448 | G175: -0.02075666869 | H175: -0.6969969055 | I175: -0.0748296393
A176: 70 | B176: 2.747477419 | C176: 5.389569056 | D176: -0.5976724775 | E176: 29.40466699 | F176: -0.1832895797 | G176: -0.02032576929 | H176: -0.6868735613 | I176: -0.07617036146
A177: 71 | B177: 2.904210878 | C177: 5.693583788 | D177: -0.6512784773 | E177: 32.84106 | F177: -0.1733678446 | G177: -0.01983122583 | H177: -0.6768646248 | I177: -0.07742528759
A178: 72 | B178: 3.077683537 | C178: 6.030067425 | D178: -0.7106096212 | E178: 36.86667919 | F178: -0.1635641603 | G178: -0.0192751188 | H178: -0.6669628838 | I178: -0.07859783461
A179: 73 | B179: 3.270852618 | C179: 6.404756067 | D179: -0.776677338 | E179: 41.62412796 | F179: -0.1538712372 | G179: -0.01865930594 | H179: -0.6571613763 | I179: -0.07969114562
A180: 74 | B180: 3.487414444 | C180: 6.824819442 | D180: -0.8507458446 | E180: 47.3019289 | F180: -0.1442820536 | G180: -0.01798543663 | H180: -0.6474533713 | I180: -0.0807081081
A181: 75 | B181: 3.732050808 | C181: 7.299338791 | D181: -0.9344164088 | E181: 54.15348081 | F181: -0.1347898359 | G181: -0.01725496487 | H181: -0.6378323517 | I181: -0.08165137043
A182: 76 | B182: 4.010780934 | C182: 7.83998956 | D182: -1.029747726 | E182: 62.52581667 | F182: -0.1253880393 | G182: -0.01646916076 | H182: -0.6282919967 | I182: -0.08252335672
A183: 77 | B183: 4.331475874 | C183: 8.46203917 | D183: -1.139431856 | E183: 72.90441186 | F183: -0.1160703304 | G183: -0.01562912075 | H183: -0.618826166 | I183: -0.0833262802
A184: 78 | B184: 4.704630109 | C184: 9.185843686 | D184: -1.267058121 | E184: 85.98516051 | F184: -0.1068305697 | G184: -0.01473577666 | H184: -0.6094288847 | I184: -0.0840621552
A185: 79 | B185: 5.144554016 | C185: 10.03916084 | D185: -1.417520959 | E185: 102.7941161 | F185: -0.09766279653 | G185: -0.01378990367 | H185: -0.6000943286 | I185: -0.08473280799
A186: 80 | B186: 5.67128182 | C186: 11.06085088 | D186: -1.597672477 | E186: 124.8949794 | F186: -0.088561213 | G186: -0.01279212731 | H186: -0.5908168102 | I186: -0.08533988637
A187: 81 | B187: 6.313751515 | C187: 12.3070446 | D187: -1.817410055 | E187: 154.7663261 | F187: -0.07952017024 | G187: -0.01174292949 | H187: -0.5815907655 | I187: -0.08588486832
A188: 82 | B188: 7.115369722 | C188: 13.86193752 | D188: -2.091579629 | E188: 196.5280173 | F188: -0.07053415445 | G188: -0.01064265369 | H188: -0.5724107414 | I188: -0.08636906956
A189: 83 | B189: 8.144346428 | C189: 15.85783605 | D189: -2.443510389 | E189: 257.4417071 | F189: -0.06159777382 | G189: -0.009491509425 | H189: -0.563271383 | I189: -0.0867936503
A190: 84 | B190: 9.514364454 | C190: 18.5152499 | D190: -2.912084151 | E190: 351.2947131 | F190: -0.05270574596 | G190: -0.008289575797 | H190: -0.5541674218 | I190: -0.0871596211
A191: 85 | B191: 11.4300523 | C191: 22.23109549 | D191: -3.567287983 | E191: 506.9471501 | F191: -0.04385288581 | G191: -0.007036804493 | H191: -0.5450936643 | I191: -0.0874678479
A192: 86 | B192: 14.30066626 | C192: 27.79920419 | D192: -4.549095779 | E192: 793.490026 | F192: -0.03503409404 | G192: -0.005733022005 | H192: -0.5360449805 | I192: -0.08771905634
A193: 87 | B193: 19.08113669 | C193: 37.07184741 | D193: -6.184112961 | E193: 1412.565123 | F193: -0.02624434569 | G193: -0.004377931225 | H193: -0.5270162931 | I193: -0.08791383534
A194: 88 | B194: 28.63625328 | C194: 55.60583656 | D194: -9.452155309 | E194: 3181.352299 | F194: -0.01747867929 | G194: -0.002971112414 | H194: -0.5180025666 | I194: -0.08805264002
A195: 89 | B195: 57.28996163 | C195: 111.1852232 | D195: -19.25230074 | E195: 12732.80494 | F195: -0.008732186168 | G195: -0.001512023535 | H195: -0.5089987967 | I195: -0.08813579387
A196: 90 | B196: 1.632455228e+16 | C196: 3.166461359e+16 | D196: -5583325709718649 | E196: 1.03382128e+33 | F196: -3.062871137e-17 | G196: -5.400668199e-18 | H196: -0.5 | I196: -0.08816349035

Sheet Determine Link Lengths
B2: Note: The mechanism satisfies the given swing angle and the corresponding crank angle specified in the first sheet (Geometric Loci sheet).
B7: Determine the link lengths for a given value of the l parameter.
B8: l
B9: 0.25
C10: s | D10: =+f -> 100 | G10: 2
B11: a2 | C11: =B9/2*SQRT(1/('Geometric Loci'!D7^2+B9^2*'Geometric Loci'!D8^2)) -> 0.4148977089 | D11: =+C11*D10 -> 41.48977089 | G11: 45 | H11: 0 | I11: =+D13 -> 88.31307705
B12: a3 | C12: =+C11/B9 -> 1.659590836 | D12: =+C12*D10 -> 165.9590836 | G12: =SliderCrnk(D11,D12,-D13,1,G11*PI()/180) -> 146.3877409 | H12: =+D11*COS(G11*PI()/180) -> 29.33769835 | I12: =+D11*SIN(G11*PI()/180)+D13 -> 117.6507754 | K12: =+SQRT((H13-H12)^2+(I13-I12)^2) -> 165.9590836
B13: c | C13: =0.5*(1-B9^2)*'Geometric Loci'!C8/((1+B9^2)+(1-B9^2)*'Geometric Loci'!C7) -> 0.8831307705 | D13: =+C13*D10 -> 88.31307705 | H13: =+G12 -> 146.3877409 | I13: 0
K14: =+H13-12 -> 134.3877409 | L14: 6
B15: b | C15: =+ATAN((C11+C12)/C13)-PI()/2 -> -0.402471973 | K15: =+H13+12 -> 158.3877409 | L15: 6
C16: =+C15*180/PI() -> -23.05994543 | K16: =+K15 -> 158.3877409 | L16: -6
K17: =+K14 -> 134.3877409 | L17: -6
K18: =+K17 -> 134.3877409 | L18: 6
A19: 0 | B19: =+D13 -> 88.31307705
A20: =+D11*COS(C15) -> 38.17455353 | B20: =+D11*SIN(C15)+D13 -> 72.06178322
A21: =SliderCrnk(D11,D12,-D13,1,C15) -> 187.6721014 | B21: 0
A23: 0 | B23: =+B19 -> 88.31307705
A24: =+D11*COS(C15+'Geometric Loci'!C6) -> -30.31407641 | B24: =+D11*SIN(C15+'Geometric Loci'!C6)+'Determine Link Lengths'!B23 -> 116.6407642
A25: =SliderCrnk(D11,D12,-D13,1,+C15+y*PI()/180) -> 87.74247589 | B25: 0
A50: 0

Sheet Optimum
A11: lopt= | B11: =SQRT(0.5/'Geometric Loci'!C11^2*(SQRT(5+4*'Geometric Loci'!C11^2)-1)) -> 0.4051852735 | C11: =+B11^2 -> 0.1641751058
A13: s | B13: 1 | C13: =+f -> 100
A14: a2 | B14: =+B11/2*SQRT(1/('Geometric Loci'!D7^2+B11^2*'Geometric Loci'!D8^2)) -> 0.4655416464 | C14: =+$C$13*B14 -> 46.55416464
A15: a3 | B15: =+B14/B11 -> 1.148959937 | C15: =+$C$13*B15 -> 114.8959937
A16: c | B16: =0.5*(1-B11^2)*'Geometric Loci'!C8/((1+B11^2)+(1-B11^2)*'Geometric Loci'!C7) -> 0.3773781561 | C16: =+$C$13*B16 -> 37.73781561
B19: 2
B20: 32 | C20: 0 | D20: =+C16 -> 37.73781561
B21: =SliderCrnk(C14,C15,-C16,1,B20*PI()/180) -> 135.9496495 | C21: =+C14*COS(B20*PI()/180) -> 39.48017069 | D21: =+C14*SIN(B20*PI()/180)+C16 -> 62.40776428 | F21: =+SQRT((C22-C21)^2+(D22-D21)^2) -> 114.8959937
C22: =+B21 -> 135.9496495 | D22: 0
F23: =+C22-8 -> 127.9496495 | G23: 5
F24: =+C22+8 -> 143.9496495 | G24: 5
F25: =+F24 -> 143.9496495 | G25: -5
A26: b | B26: =+ATAN((C14+C15)/C16)-PI()/2 -> -0.2296202433 | C26: =+B26*180/PI() -> -13.15627083 | E26: 2866.843729 | F26: =+F23 -> 127.9496495 | G26: -5
A27: maxmmin | B27: =+ACOS((C14+C16)/C15) -> 0.7471372277 | C27: =+B27*180/PI() -> 42.80780987 | F27: =+F26 -> 127.9496495 | G27: 5
A29: 0 | B29: =+C16 -> 37.73781561 | C29: 0 | D29: =+B29 -> 37.73781561
A30: =+C14*COS(B26) -> 45.33225287 | B30: =+C14*SIN(B26)+B29 -> 27.1417269 | C30: =+C14*COS(B26+'Geometric Loci'!C6) -> -38.97430772 | D30: =+C14*SIN(B26+'Geometric Loci'!C6)+C16 -> 63.1994256 | F30: =+ACOS((C16+C14)/C15)*180/PI() -> 42.80780987 | G30: =180/PI()*ACOS((B16+B14)/B15) -> 42.80780987
A31: =SliderCrnk(C14,C15,-C16,1,B26) -> 156.976402 | B31: 0 | C31: =SliderCrnk(C14,C15,-C16,1,B26+'Geometric Loci'!C6) -> 56.97839929 | D31: 0
A33: =SliderCrnk($B$14,$B$15,-$B$16,1,+PI()/2) -> 0.7807657423 | B33: =+ATAN(A33/(B16+B14))*180/PI() -> 42.80780987
A34: =SliderCrnk(B14,B15,-B16,1,-PI()/2) -> 1.145572406 | B34: =+ATAN(A34/(B14-B16))*180/PI() -> 85.59917972
A35: =SliderCoupler(B14,B15,B16,1,+PI()/2)*180/PI()-90 -> 85.59917972
